bitfinex/quotes_SOLUSD_20250823
["timestamp","ask_amount","ask_price","bid_price","bid_amount"]
[1755933562847,0.15982501,206.6,206.59,6.99467303]
[1755933563052,0.15982501,206.6,206.59,10.29653963]
[1755933563246,0.15982501,206.6,206.59,9.61653963]
[1755933563456,0.15982501,206.6,206.59,10.29653963]
[1755933563829,0.15982501,206.6,206.59,9.61653963]
[1755933564159,0.15982501,206.6,206.59,3.3018666]
[1755933564359,0.15982501,206.6,206.59,10.29653963]
[1755933568254,0.15982501,206.6,206.59,3.9618666]
[1755933568460,0.15982501,206.6,206.59,10.27653963]
[1755933569043,0.15982501,206.6,206.59,9.61653963]
[1755933570038,0.15982501,206.6,206.59,10.27653963]
[1755933571039,0.15982501,206.6,206.59,3.3018666]
[1755933571335,0.15982501,206.6,206.59,9.61653963]
[1755933572035,0.15982501,206.6,206.59,9.61968769]
[1755933572551,0.15982501,206.6,206.59,9.62062675]
[1755933574663,0.15982501,206.6,206.59,10.28062675]
[1755933575172,0.15982501,206.6,206.59,10.28136141]
[1755933575546,0.15982501,206.6,206.59,12.21826641]
[1755933575747,0.15982501,206.6,206.59,10.28136141]
[1755933576271,0.15982501,206.6,206.59,3.30668838]
[1755933576463,0.15982501,206.6,206.59,35.62136141]
[1755933576647,0.15982501,206.6,206.59,29.30668838]
[1755933576852,0.15982501,206.6,206.59,36.28136141]
[1755933577362,0.15982501,206.6,206.59,36.31136141]
[1755933577666,0.15982501,206.6,206.59,35.65136141]
[1755933578075,0.15982501,206.6,206.59,35.70842477]
[1755933578454,0.15982501,206.6,206.59,29.39375174]
[1755933578689,0.15982501,206.6,206.59,35.70842477]
[1755933579066,0.15982501,206.6,206.59,9.70842477]
[1755933581184,0.25457116,206.6,206.59,9.71341264]
[1755933581554,13.95016517,206.6,206.59,29.39873961]
[1755933581775,14.23448831,206.6,206.59,3.39873961]
[1755933582371,52.0746633,206.6,206.59,3.39873961]
[1755933582985,55.4734033,206.6,206.59,3.39873961]
[1755933584167,14.1346633,206.6,206.59,3.39873961]
[1755933584370,52.0746633,206.6,206.59,3.28428537]
[1755933584966,51.9746633,206.6,206.59,3.28428537]
[1755933585189,51.9746633,206.6,206.59,3.33016047]
[1755933585564,13.75034016,206.6,206.59,9.6448335]
[1755933585762,51.69034016,206.6,206.59,10.3048335]
[1755933586388,51.69034016,206.6,206.59,3.33016047]
[1755933588803,52.6246633,206.6,206.59,3.33016047]
[1755933590474,52.6246633,206.6,206.59,3.32857815]
[1755933591173,51.9746633,206.6,206.59,3.32857815]
[1755933591886,52.6246633,206.6,206.59,3.32857815]
[1755933592483,51.9746633,206.6,206.59,3.32857815]
[1755933592867,0.15474615,206.6,206.59,3.32857815]
[1755933593071,0.09520936,206.62,206.59,45.58397181]
[1755933593276,0.09520936,206.62,206.61,9.87218232]
[1755933593471,0.09834828,206.64,206.61,18.40992128]
[1755933593668,0.02631323,206.64,206.63,35.87218232]
[1755933593899,0.02631323,206.64,206.63,39.17076047]
[1755933594197,0.02631323,206.64,206.63,39.83076047]
[1755933594380,0.02631323,206.64,206.63,54.35544047]
[1755933597673,0.02631323,206.64,206.63,53.69544047]
[1755933598592,0.02631323,206.64,206.63,39.17076047]
[1755933599115,14.31190724,206.64,206.63,39.17076047]
[1755933599609,14.31190724,206.64,206.63,39.49300166]
[1755933600407,13.62190724,206.64,206.63,39.49300166]
[1755933601105,14.31190724,206.64,206.63,29.62081934]
[1755933601296,14.4085149,206.64,206.63,3.62081934]
[1755933601503,52.3285149,206.64,206.63,3.62081934]
[1755933601713,52.3285149,206.64,206.63,13.49300166]
[1755933602504,52.30220167,206.64,206.63,13.49300166]
[1755933603409,51.61220167,206.64,206.63,13.49300166]
[1755933603792,51.61220167,206.64,206.63,3.62081934]
[1755933603992,51.61220167,206.64,206.63,13.49300166]
[1755933604812,52.30220167,206.64,206.63,13.49300166]
[1755933605197,52.58652481,206.64,206.63,3.62081934]
[1755933607700,13.87991715,206.63,206.62,9.87218232]
[1755933607993,14.56991715,206.63,206.62,13.40974576]
[1755933610791,14.56991715,206.63,206.62,13.40961355]
[1755933611394,14.56991715,206.63,206.62,13.43961355]
[1755933612520,13.59559401,206.63,206.62,13.43961355]
[1755933612722,37.9,206.63,206.62,14.12961355]
[1755933612923,51.49559401,206.63,206.62,14.12961355]
[1755933613724,37.9,206.63,206.62,14.12961355]
[1755933616527,0.09660766,206.64,206.62,14.12961355]
[1755933616734,0.09660766,206.64,206.63,14.09961355]
[1755933616946,0.09660766,206.64,206.63,10.56218232]
[1755933617234,0.09660766,206.64,206.63,14.02502226]
[1755933621345,0.19486387,206.64,206.63,14.02502226]
[1755933622515,0.09825621,206.64,206.63,13.33502226]
[1755933623942,0.09825621,206.64,206.63,14.02502226]
[1755933624160,14.38385022,206.64,206.63,13.33502226]
[1755933624653,13.69385022,206.64,206.63,13.33502226]
[1755933626059,13.69385022,206.64,206.63,9.87218232]
[1755933626348,13.69385022,206.64,206.63,13.33350374]
[1755933626552,13.69385022,206.64,206.63,9.87218232]
[1755933626853,14.38385022,206.64,206.63,3.46135996]
[1755933628862,14.44385022,206.64,206.63,3.46135996]
[1755933629031,14.44385022,206.64,206.63,13.33354228]
[1755933629428,0.15176517,206.65,206.63,14.04354228]
[1755933629651,0.15176517,206.65,206.64,18.81253643]
[1755933630233,0.10026844,206.66,206.64,20.74869143]
[1755933630426,0.10026844,206.66,206.65,13.33354228]
[1755933630630,0.10026844,206.66,206.65,14.04354228]
[1755933632351,0.10026844,206.66,206.65,15.97969728]
[1755933632538,0.10026844,206.66,206.65,13.33354228]
[1755933632740,0.10026844,206.66,206.65,14.04354228]
[1755933635362,0.10026844,206.66,206.65,16.03841578]
[1755933635762,0.10026844,206.66,206.65,14.10197978]
[1755933641374,0.19641053,206.66,206.65,14.10197978]
[1755933642478,0.09614209,206.66,206.65,14.10197978]
[1755933644186,0.09614209,206.66,206.65,13.39197978]
[1755933644487,0.09614209,206.66,206.65,9.87218232]
[1755933644649,0.09614209,206.66,206.65,13.37692445]
[1755933645150,0.09614209,206.66,206.65,3.50488989]
[1755933645357,0.75614209,206.66,206.65,39.37707221]
[1755933645574,0.09614209,206.66,206.65,39.37747186]
[1755933647791,0.09614209,206.66,206.65,26.0]
[1755933647964,0.09614209,206.66,206.65,39.37776203]
[1755933648148,0.09614209,206.66,206.65,40.08776203]
[1755933648572,0.09614209,206.66,206.65,39.37776203]
[1755933649352,0.09614209,206.66,206.65,40.08776203]
[1755933649556,0.09614209,206.66,206.65,14.08776203]
[1755933649954,0.09614209,206.66,206.65,28.61033303]
[1755933650594,0.00832173,206.67,206.66,9.87218232]
[1755933650889,0.00832173,206.67,206.66,14.08776203]
[1755933651696,0.66832173,206.67,206.66,29.50557971]
[1755933651865,0.66832173,206.67,206.66,39.37776203]
[1755933652058,14.26391574,206.67,206.66,3.50557971]
[1755933652999,14.54823888,206.67,206.66,3.50557971]
[1755933654089,13.87991715,206.66,206.62,35.90218232]
[1755933654273,13.59559401,206.64,206.63,3.45284856]
[1755933654475,14.25559401,206.64,206.63,3.4530665]
[1755933657670,13.59559401,206.64,206.63,3.4530665]
[1755933657882,13.59559401,206.64,206.63,13.32524882]
[1755933658496,0.67,206.66,206.63,13.32524882]
[1755933658673,0.67,206.66,206.62,0.03]
[1755933658674,51.45559401,206.65,206.64,13.32524882]
[1755933659483,51.45559401,206.65,206.64,3.4530665]
[1755933659702,52.12559401,206.65,206.64,3.4530665]
[1755933661282,52.2229019,206.65,206.64,3.4530665]
[1755933661692,52.2229019,206.65,206.64,13.32524882]
[1755933662191,52.2229019,206.65,206.64,13.32550903]
[1755933662589,52.2229019,206.65,206.64,9.87218232]
[1755933662790,52.2229019,206.65,206.64,13.32540534]
[1755933663087,51.5529019,206.65,206.64,13.32540534]
[1755933663305,51.5529019,206.65,206.64,13.35540534]
[1755933664600,51.5529019,206.65,206.64,3.48322302]
[1755933664792,51.5529019,206.65,206.64,13.35540534]
[1755933665889,51.5529019,206.65,206.64,3.48322302]
[1755933666918,52.2229019,206.65,206.64,3.48322302]
[1755933668397,52.2229019,206.65,206.64,13.35540534]
[1755933668398,37.93730789,206.65,206.64,13.35540534]
[1755933668990,52.2029019,206.65,206.64,3.48322302]
[1755933669203,14.3629019,206.65,206.64,3.48322302]
[1755933669407,52.2029019,206.65,206.64,3.48322302]
[1755933670694,13.6929019,206.65,206.64,3.48322302]
[1755933670895,51.5329019,206.65,206.64,3.48322302]
[1755933671412,51.5329019,206.65,206.64,3.55647832]
[1755933671782,52.2029019,206.65,206.64,3.55647832]
[1755933671998,51.5329019,206.65,206.64,3.55647832]
[1755933672200,52.2029019,206.65,206.64,3.55647832]
[1755933672387,14.3629019,206.65,206.64,3.55647832]
[1755933672587,52.2029019,206.65,206.64,3.55647832]
[1755933675697,52.48722504,206.65,206.64,3.55647832]
[1755933677924,62.35940736,206.65,206.64,3.55647832]
[1755933678822,52.48722504,206.65,206.64,3.55647832]
[1755933678998,62.35940736,206.65,206.64,3.55647832]
[1755933679196,52.48722504,206.65,206.64,3.55647832]
[1755933679622,62.35940736,206.65,206.64,3.5064778]
[1755933679802,14.64722504,206.65,206.64,0.03]
[1755933680011,52.48722504,206.65,206.64,3.20545733]
[1755933680395,52.48722504,206.65,206.64,0.03]
[1755933680620,52.48722504,206.65,206.64,3.20508148]
[1755933681008,51.81722504,206.65,206.64,3.20508148]
[1755933681208,51.91473832,206.65,206.64,3.20508148]
[1755933681408,14.07473832,206.65,206.64,3.20508148]
[1755933681613,51.91473832,206.65,206.64,3.20508148]
[1755933682211,52.58473832,206.65,206.64,3.20508148]
[1755933682412,52.48743043,206.65,206.64,3.20508148]
[1755933686824,51.81743043,206.65,206.64,3.20508148]
[1755933687132,52.48743043,206.65,206.64,3.20508148]
[1755933687312,51.81743043,206.65,206.64,3.91508148]
[1755933687703,51.81743043,206.65,206.64,3.20508148]
[1755933689104,51.53310729,206.65,206.64,3.91508148]
[1755933689728,51.53310729,206.65,206.64,3.20508148]
[1755933689935,52.20310729,206.65,206.64,3.20508148]
[1755933691337,52.48743043,206.65,206.64,3.20508148]
[1755933696212,51.81743043,206.65,206.64,3.20508148]
[1755933696739,13.97743043,206.65,206.64,3.91508148]
[1755933696918,51.79743043,206.65,206.64,3.91508148]
[1755933697226,51.79743043,206.65,206.64,3.20508148]
[1755933698933,51.79743043,206.65,206.64,3.45645034]
[1755933699142,52.46743043,206.65,206.64,3.45645034]
[1755933699640,52.46743043,206.65,206.64,3.45678755]
[1755933700431,51.79743043,206.65,206.64,3.45678755]
[1755933700726,52.46743043,206.65,206.64,3.45678755]
[1755933700937,51.79743043,206.65,206.64,3.45678755]
[1755933701231,51.90159006,206.65,206.64,3.45678755]
[1755933701824,52.57159006,206.65,206.64,3.45678755]
[1755933702229,51.90159006,206.65,206.64,3.45678755]
[1755933702528,51.51975364,206.65,206.64,3.45678755]
[1755933703115,52.18975364,206.65,206.64,3.45678755]
[1755933703523,52.47407678,206.65,206.64,3.45678755]
[1755933705635,52.47407678,206.65,206.64,3.45878391]
[1755933706937,131.47407678,206.65,206.64,3.45878391]
[1755933708042,131.47407678,206.65,206.64,0.03]
[1755933708218,137.79074612,206.65,206.64,3.45850867]
[1755933711047,131.47407678,206.65,206.64,3.45850867]
[1755933711226,137.79074612,206.65,206.64,3.45850867]
[1755933711432,131.47407678,206.65,206.64,3.45850867]
[1755933711630,137.79074612,206.65,206.64,3.45850867]
[1755933711834,131.47407678,206.65,206.64,3.45850867]
[1755933717344,137.79074612,206.65,206.64,3.45732795]
[1755933719349,137.81074612,206.65,206.64,3.45732795]
[1755933719960,130.80407678,206.65,206.64,3.45732795]
[1755933720460,131.49407678,206.65,206.64,3.45732795]
[1755933720755,137.81074612,206.65,206.64,3.45732795]
[1755933721333,137.90764395,206.65,206.64,3.45732795]
[1755933721757,58.90764395,206.65,206.64,0.03]
[1755933722127,58.21764395,206.65,206.64,0.03]
[1755933722329,51.79681498,206.65,206.64,3.45659079]
[1755933722533,58.80348432,206.65,206.64,3.45659079]
[1755933724356,58.80348432,206.65,206.62,0.03]
[1755933724541,13.59559401,206.5,206.43,0.69]
[1755933724858,0.28432314,206.47,206.43,0.69]
[1755933725166,13.87991715,206.45,206.4,26.0]
[1755933725354,0.28432314,206.45,206.44,0.69]
[1755933725538,38.06432314,206.45,206.44,0.69]
[1755933726366,51.37559401,206.45,206.44,0.69]
[1755933726960,51.65991715,206.45,206.35,7.33397875]
[1755933727164,9.88896728,206.44,206.37,9.88896728]
[1755933727359,13.59559401,206.42,206.38,0.69]
[1755933727653,37.78,206.41,206.38,0.69]
[1755933728039,13.59559401,206.43,206.38,10.57896728]
[1755933728354,37.78,206.42,206.39,0.69]
[1755933731571,0.28432314,206.44,206.39,0.69]
[1755933731862,37.8,206.43,206.39,0.69]
[1755933732067,13.59559401,206.49,206.42,9.88896728]
[1755933732236,37.8,206.48,206.41,26.0]
[1755933732440,13.59559401,206.46,206.43,26.0]
[1755933732661,23.48456129,206.44,206.4,0.69]
[1755933732870,13.59559401,206.42,206.41,0.69]
[1755933735938,13.59559401,206.42,206.38,0.03]
[1755933736248,23.76888443,206.39,206.38,0.03]
[1755933736448,23.76888443,206.39,206.35,0.03]
[1755933736449,39.87991715,206.36,206.35,0.03]
[1755933736767,39.87991715,206.36,206.21,0.69]
[1755933736768,0.14216157,206.3,206.21,0.69]
[1755933736964,13.87991715,206.28,206.21,0.69]
[1755933737138,13.59559401,206.24,206.21,0.19]
[1755933737474,37.98,206.23,206.21,0.19]
[1755933739295,37.98,206.23,206.19,0.69]
[1755933739563,37.98,206.23,206.21,26.69]
[1755933739939,37.98,206.23,206.21,0.69]
[1755933740842,13.59559401,206.24,206.22,0.69]
[1755933741145,37.96,206.23,206.22,0.69]
[1755933741350,38.05995609,206.23,206.2,0.79]
[1755933741556,38.05995609,206.23,206.21,0.69]
[1755933742141,38.05995609,206.23,206.2,0.1]
[1755933742458,38.05995609,206.23,206.21,0.69]
[1755933742841,38.05995609,206.23,206.21,9.88896728]
[1755933743150,38.05995609,206.23,206.21,0.69]
[1755933744158,38.05995609,206.23,206.2,0.1]
[1755933744368,38.05995609,206.23,206.21,0.69]
[1755933744565,37.96,206.22,206.2,0.1]
[1755933744870,37.96,206.22,206.21,9.88896728]
[1755933745068,37.96,206.22,206.21,10.57896728]
[1755933745262,37.96,206.22,206.21,0.69]
[1755933745466,37.96,206.22,206.2,0.1]
[1755933745653,37.96,206.22,206.21,35.88896728]
[1755933746271,37.96,206.22,206.21,36.57896728]
[1755933747359,37.96,206.22,206.21,26.69]
[1755933747549,37.96,206.22,206.21,36.57896728]
[1755933747963,37.96,206.22,206.21,26.69]
[1755933748157,37.96,206.22,206.21,35.88896728]
[1755933748565,37.96,206.22,206.21,36.60896728]
[1755933750453,37.98,206.22,206.21,36.60896728]
[1755933750850,37.96,206.22,206.21,36.60896728]
[1755933751468,37.96,206.22,206.21,26.0]
[1755933751677,37.96,206.22,206.21,35.88896728]
[1755933751879,37.96,206.22,206.21,36.60896728]
[1755933752078,0.09995609,206.23,206.21,36.60896728]
[1755933752280,0.09995609,206.23,206.22,10.60896728]
[1755933757262,0.09995609,206.23,206.21,1.9401]
[1755933757491,0.09995609,206.23,206.22,9.88896728]
[1755933757853,0.09995609,206.23,206.2,0.1]
[1755933758361,0.09995609,206.23,206.22,9.88896728]
[1755933758759,0.78995609,206.23,206.22,9.88896728]
[1755933761485,0.8902683,206.23,206.2,0.1]
[1755933761684,38.67,206.22,206.2,0.1]
[1755933761891,38.67,206.22,206.21,9.88896728]
[1755933762091,37.98,206.22,206.21,9.88896728]
[1755933762581,38.67,206.22,206.2,0.1]
[1755933762790,14.28559401,206.21,206.2,0.1]
[1755933763089,14.56991715,206.21,206.2,0.1]
[1755933763460,0.28432314,206.2,206.17,0.03]
[1755933763664,14.28559401,206.19,206.17,0.03]
[1755933763862,52.24559401,206.18,206.17,0.03]
[1755933764479,62.41888443,206.18,206.17,0.03]
[1755933765077,62.45888443,206.18,206.17,0.03]
[1755933767889,52.56991715,206.18,206.17,0.03]
[1755933768084,62.45888443,206.18,206.17,0.03]
[1755933768999,52.42775558,206.18,206.17,0.03]
[1755933769176,52.28559401,206.18,206.17,0.03]
[1755933769382,52.56991715,206.18,206.17,0.03]
[1755933769798,13.87991715,206.17,206.16,0.03]
[1755933769972,24.45888443,206.17,206.16,0.03]
[1755933770601,14.56991715,206.17,206.16,0.03]
[1755933770968,52.56991715,206.17,206.16,0.03]
[1755933771505,62.45888443,206.17,206.16,0.03]
[1755933772196,52.56991715,206.17,206.16,0.03]
[1755933776491,14.56991715,206.17,206.16,0.03]
[1755933776692,52.58991715,206.17,206.16,0.03]
[1755933777675,52.58991715,206.17,206.11,0.03]
[1755933777676,24.45888443,206.17,206.11,0.03]
[1755933777906,23.76888443,206.12,206.11,0.03]
[1755933778207,61.96888443,206.12,206.11,0.03]
[1755933778410,23.76888443,206.12,206.11,0.03]
[1755933778705,62.63888443,206.12,206.11,0.03]
[1755933778911,14.54991715,206.12,206.11,0.03]
[1755933779079,62.63888443,206.12,206.11,0.03]
[1755933779280,29.11832715,206.12,206.11,0.03]
[1755933779477,77.20729443,206.12,206.11,0.03]
[1755933780899,62.63888443,206.12,206.11,0.03]
[1755933781104,72.52785243,206.12,206.11,0.03]
[1755933781406,72.6282333,206.12,206.11,0.03]
[1755933781806,52.85029802,206.12,206.11,0.03]
[1755933781987,24.5392653,206.12,206.11,0.03]
[1755933782193,52.85029802,206.12,206.11,0.03]
[1755933782392,62.7392653,206.12,206.11,0.03]
[1755933783589,14.65029802,206.12,206.11,0.03]
[1755933783793,62.7392653,206.12,206.11,0.03]
[1755933783980,24.5392653,206.12,206.11,0.03]
[1755933784184,62.7592653,206.12,206.11,0.03]
[1755933784386,62.7392653,206.12,206.11,0.03]
[1755933784589,52.85029802,206.12,206.11,0.03]
[1755933784810,62.7392653,206.12,206.11,0.03]
[1755933785115,51.89597488,206.12,206.11,0.03]
[1755933785594,51.89597488,206.12,206.11,0.62]
[1755933785907,38.30038087,206.12,206.11,10.50896728]
[1755933786119,38.30038087,206.12,206.11,0.03]
[1755933786416,38.30038087,206.12,206.11,10.50896728]
[1755933787275,0.10038087,206.12,206.11,10.50896728]
[1755933787707,0.10305494,206.13,206.11,10.50896728]
[1755933787893,0.15504504,206.2,206.15,26.0]
[1755933788104,0.00562004,206.17,206.16,26.0]
[1755933788295,0.00562004,206.17,206.16,35.88896728]
[1755933790412,0.00562004,206.17,206.16,9.88896728]
[1755933797720,0.10005946,206.18,206.16,9.88896728]
[1755933798021,0.15504504,206.2,206.18,9.88896728]
[1755933798200,0.15504504,206.2,206.19,9.88896728]
[1755933798820,0.15504504,206.2,206.19,13.75650706]
[1755933799027,0.15504504,206.2,206.19,9.88896728]
[1755933799605,0.09721023,206.21,206.19,13.70043883]
[1755933799915,0.06,206.25,206.24,26.0]
[1755933800112,0.06,206.25,206.24,35.88896728]
[1755933801316,0.16544009,206.25,206.24,35.88896728]
[1755933803211,0.097458,206.26,206.24,45.77793456]
[1755933803531,0.097458,206.26,206.25,9.88896728]
[1755933804028,0.15146879,206.28,206.27,26.0]
[1755933804230,0.09070695,206.32,206.27,35.88896728]
[1755933804434,0.09070695,206.32,206.29,35.88896728]
[1755933804616,0.09070695,206.32,206.31,9.88896728]
[1755933806525,0.76070695,206.32,206.24,9.88896728]
[1755933806736,0.76070695,206.32,206.3,35.88896728]
[1755933806947,0.76070695,206.32,206.31,9.88896728]
[1755933807923,0.28432314,206.31,206.3,26.0]
[1755933808226,0.96432314,206.31,206.21,1.940099]
[1755933808425,52.71991715,206.3,206.29,9.88896728]
[1755933808732,0.09070695,206.32,206.31,26.0]
[1755933808928,0.09070695,206.32,206.31,35.88896728]
[1755933809135,0.77070695,206.32,206.31,35.88896728]
[1755933811355,14.6506241,206.32,206.31,9.88896728]
[1755933812413,13.59559401,206.31,206.29,9.88896728]
[1755933812611,13.59559401,206.31,206.24,26.0]
[1755933812612,13.59559401,206.29,206.26,9.88896728]
[1755933812833,13.87991715,206.27,206.24,9.88896728]
[1755933813027,0.68,206.26,206.23,9.88896728]
[1755933813239,0.68,206.26,206.14,10.0]
[1755933813425,0.28432314,206.24,206.14,14.552157]
[1755933813627,0.28432314,206.22,206.16,9.88896728]
[1755933813940,0.28432314,206.19,206.16,9.88896728]
[1755933814117,38.26,206.18,206.17,9.88896728]
[1755933814456,38.94,206.18,206.17,15.69314169]
[1755933814754,38.94,206.18,206.16,41.69314169]
[1755933815043,0.68,206.17,206.16,41.69314169]
[1755933815639,38.26,206.18,206.16,41.69314169]
[1755933815939,38.26,206.18,206.17,15.69314169]
[1755933816145,38.94,206.18,206.17,15.69314169]
[1755933816715,38.3,206.19,206.17,15.69314169]
[1755933817025,38.3,206.19,206.18,15.69314169]
[1755933817734,38.28,206.2,206.18,15.69314169]
[1755933817943,38.96,206.2,206.13,0.03]
[1755933818144,38.96,206.2,206.18,15.69314169]
[1755933818647,0.68,206.19,206.18,15.69314169]
[1755933821415,0.76947114,206.19,206.18,15.69314169]
[1755933821867,0.08947114,206.19,206.18,15.69314169]
[1755933822631,38.30947114,206.19,206.18,15.69314169]
[1755933824443,0.76947114,206.19,206.18,15.69314169]
[1755933824948,0.08947114,206.19,206.18,15.69314169]
[1755933828763,0.08900874,206.2,206.18,15.69314169]
[1755933828960,0.08900874,206.2,206.19,15.69314169]
[1755933835448,0.08900874,206.2,206.17,1.940382]
[1755933835653,0.68,206.19,206.15,0.03]
[1755933835849,0.68,206.19,206.18,15.69314169]
[1755933836362,0.68,206.19,206.15,26.03]
[1755933837077,0.68,206.19,206.18,9.90580926]
[1755933837261,0.08900874,206.2,206.18,9.90580926]
[1755933837568,0.08900874,206.2,206.19,9.90580926]
[1755933837769,0.08900874,206.2,206.15,0.03]
[1755933837969,0.67,206.19,206.17,9.90580926]
[1755933840452,0.67,206.19,206.16,9.90580926]
[1755933840652,0.67,206.19,206.15,0.03]
[1755933840653,0.95432314,206.19,206.15,0.03]
[1755933840861,0.95432314,206.19,206.17,26.0]
[1755933841058,14.54991715,206.18,206.17,26.0]
[1755933841376,14.64407483,206.18,206.17,26.0]
[1755933842958,0.76415768,206.18,206.16,9.90580926]
[1755933843175,0.67,206.17,206.16,9.90580926]
[1755933844173,0.09415768,206.18,206.16,9.90580926]
[1755933844366,0.09415768,206.18,206.17,9.90580926]
[1755933845674,0.76415768,206.18,206.17,9.90580926]
[1755933846081,0.76415768,206.18,206.15,0.03]
[1755933846262,0.76415768,206.18,206.17,9.90580926]
[1755933846263,0.09415768,206.18,206.17,9.90580926]
[1755933846462,0.76415768,206.18,206.17,9.90580926]
[1755933847489,0.76415768,206.18,206.15,0.03]
[1755933847681,13.59559401,206.17,206.15,0.03]
[1755933847867,51.75559401,206.17,206.15,26.03]
[1755933848185,0.67,206.16,206.15,26.03]
[1755933850386,14.54991715,206.16,206.15,26.03]
[1755933850972,14.54991715,206.16,206.15,0.03]
[1755933851367,24.45572641,206.16,206.15,0.03]
[1755933851761,23.78572641,206.14,206.13,0.03]
[1755933851964,13.87991715,206.14,206.13,0.03]
[1755933852185,24.45572641,206.14,206.13,0.03]
[1755933853784,13.87991715,206.13,206.12,0.03]
[1755933853990,62.63572641,206.13,206.12,0.03]
[1755933854691,52.72991715,206.13,206.12,0.03]
[1755933855267,62.65572641,206.13,206.12,0.03]
[1755933857366,0.28432314,206.12,206.01,2.5340169]
[1755933857564,13.87991715,206.07,206.05,26.0]
[1755933857797,52.76991715,206.06,206.05,26.0]
[1755933858187,52.76991715,206.06,206.01,2.5340169]
[1755933858392,52.09991715,206.06,206.05,26.0]
[1755933858581,0.67,206.05,206.04,26.0]
[1755933859278,0.67,206.05,205.93,0.60290191]
[1755933859279,13.87991715,206.04,205.93,0.60290191]
[1755933859477,13.87991715,206.02,205.97,9.90580926]
[1755933859687,13.87991715,206.02,205.96,2.53407162]
[1755933859884,14.54991715,206.01,206.0,26.0]
[1755933860084,38.24,206.03,206.0,26.0]
[1755933860300,0.10392053,206.19,206.01,0.09]
[1755933860301,4.89936829,206.17,206.01,0.09]
[1755933860469,0.10392053,206.19,206.05,9.90580926]
[1755933860470,13.59559401,206.09,206.05,9.90580926]
[1755933860666,38.97,206.08,206.04,9.90580926]
[1755933860890,14.26559401,206.07,206.05,9.90580926]
[1755933861097,13.59559401,206.07,206.05,9.90580926]
[1755933861275,0.09405838,206.05,206.01,0.09]
[1755933861476,38.39405838,206.05,206.04,9.90580926]
[1755933861680,38.49405838,206.05,206.04,9.90580926]
[1755933862570,0.09405838,206.05,205.97,10.0]
[1755933862772,0.09405838,206.05,206.04,9.90580926]
[1755933862995,0.09405838,206.05,205.98,0.09]
[1755933863172,0.09405838,206.05,206.0,26.0]
[1755933863497,0.09405838,206.05,206.04,9.90580926]
[1755933864889,0.09405838,206.05,206.02,0.09]
[1755933865095,0.09405838,206.05,206.04,9.90580926]
[1755933865695,0.09405838,206.05,206.0,0.09]
[1755933865887,0.09405838,206.05,206.04,9.90580926]
[1755933868198,0.09405838,206.05,206.01,0.03]
[1755933868500,0.09405838,206.05,206.04,9.90580926]
[1755933869294,0.09405838,206.05,206.01,0.03]
[1755933869494,0.09405838,206.05,206.04,9.90580926]
[1755933869680,0.78405838,206.05,206.01,0.03]
[1755933870003,0.78405838,206.05,206.04,9.90580926]
[1755933870497,0.78405838,206.05,206.04,35.90580926]
[1755933871307,0.78405838,206.05,206.04,26.0]
[1755933873883,0.78405838,206.05,206.04,35.90580926]
[1755933874595,0.09405838,206.05,206.04,35.90580926]
[1755933874793,0.78405838,206.05,206.04,35.90580926]
[1755933875186,0.78405838,206.05,206.04,26.0]
[1755933875675,0.09405838,206.05,206.04,26.0]
[1755933875874,0.09405838,206.05,206.04,35.90580926]
[1755933876299,0.09405838,206.05,206.04,0.09]
[1755933876484,0.78405838,206.05,206.01,0.03]
[1755933876680,0.78405838,206.05,206.04,26.0]
[1755933877718,0.78405838,206.05,206.01,0.03]
[1755933877884,0.09405838,206.05,206.04,26.0]
[1755933878615,0.78405838,206.05,206.04,26.0]
[1755933879397,0.92621995,206.05,206.04,26.0]
[1755933879720,1.06838152,206.05,206.03,26.0]
[1755933879905,0.69,206.04,206.03,26.0]
[1755933880401,10.59580926,206.04,206.01,0.03]
[1755933880608,13.87991715,206.02,206.01,0.03]
[1755933880987,14.56991715,206.02,206.01,0.03]
[1755933881189,38.32,206.03,206.01,0.03]
[1755933881415,0.79362157,206.02,206.01,0.03]
[1755933881710,14.67353872,206.02,206.01,0.03]
[1755933883026,52.97353872,206.02,206.01,0.03]
[1755933884452,62.87934798,206.02,206.01,0.03]
[1755933886006,52.97353872,206.02,206.01,0.03]
[1755933886213,62.87934798,206.02,206.01,0.03]
[1755933886718,52.97353872,206.02,206.01,0.03]
[1755933886914,62.87934798,206.02,206.01,0.03]